bitfinex/quotes_BTCUSD_20241205
["timestamp","ask_amount","ask_price","bid_price","bid_amount"]
[1733437308551,0.002,98163.0,98150.0,0.0038679]
[1733437308552,0.15,98162.0,98150.0,0.0038679]
[1733437308759,0.00077179,98161.0,98150.0,0.0038679]
[1733437308986,0.00077179,98161.0,98150.0,0.0008679]
[1733437309225,0.15,98177.0,98150.0,0.0058679]
[1733437309226,0.001,98155.0,98150.0,0.0058679]
[1733437309897,0.86380884,98154.0,98150.0,0.0018679]
[1733437310108,0.175,98153.0,98150.0,0.0008679]
[1733437310341,0.10044784,98152.0,98150.0,0.0008679]
[1733437310618,0.30421284,98152.0,98150.0,0.0008679]
[1733437311068,0.30421284,98152.0,98145.0,0.00023065]
[1733437311069,0.203778,98146.0,98145.0,0.00023065]
[1733437311286,4.82545405,98146.0,98145.0,0.00023065]
[1733437312175,4.82603628,98146.0,98145.0,0.00023065]
[1733437312818,4.83303628,98146.0,98145.0,0.00023065]
[1733437313727,2.63458223,98146.0,98145.0,0.00023065]
[1733437313954,0.00758223,98146.0,98145.0,0.00023065]
[1733437314178,0.00135402,98146.0,98145.0,0.00023065]
[1733437314429,0.00835402,98146.0,98145.0,0.00023065]
[1733437314909,0.01735402,98146.0,98145.0,0.00023065]
[1733437315113,5.95054575,98146.0,98145.0,0.00023065]
[1733437315337,5.94277396,98146.0,98145.0,0.00023065]
[1733437315780,5.94777396,98146.0,98145.0,0.00023065]
[1733437316215,5.93877396,98146.0,98145.0,0.00023065]
[1733437316660,0.2038,98135.0,98134.0,0.00138499]
[1733437316865,1.49195135,98135.0,98134.0,0.00138499]
[1733437317151,1.52935988,98135.0,98134.0,0.00138499]
[1733437317635,1.55648601,98135.0,98134.0,0.00138499]
[1733437317854,6.05135988,98135.0,98134.0,0.00138499]
[1733437318084,6.05135988,98135.0,98125.0,0.021]
[1733437318085,0.203819,98126.0,98125.0,0.021]
[1733437318312,0.203819,98126.0,98110.0,0.000866]
[1733437318313,5.93319173,98126.0,98110.0,0.000866]
[1733437318535,0.203848,98112.0,98110.0,0.000866]
[1733437318757,0.33320133,98112.0,98110.0,0.000866]
[1733437319182,1.24620133,98112.0,98110.0,0.000866]
[1733437319396,1.24620133,98112.0,98094.0,0.04204954]
[1733437319397,0.203883,98095.0,98094.0,0.04204954]
[1733437319610,2.7048741,98095.0,98094.0,0.04204954]
[1733437319849,2.9708741,98095.0,98094.0,0.04222547]
[1733437320099,0.3968741,98095.0,98094.0,0.04222547]
[1733437320328,0.49655015,98095.0,98094.0,0.04222547]
[1733437320544,0.3968741,98095.0,98094.0,0.04222547]
[1733437321026,0.3968741,98095.0,98094.0,0.03706847]
[1733437321027,1.02668452,98095.0,98094.0,0.03706847]
[1733437321254,1.06026326,98095.0,98094.0,0.03706847]
[1733437321476,5.58226326,98095.0,98094.0,0.03706847]
[1733437322161,5.58226326,98095.0,98088.0,49.91278616]
[1733437322162,0.31923055,98092.0,98088.0,46.1966082]
[1733437322382,0.00077179,98091.0,98089.0,0.163117]
[1733437322610,0.01817448,98095.0,98089.0,0.326234]
[1733437322849,0.01817448,98095.0,98094.0,0.01850321]
[1733437323079,0.00317448,98095.0,98094.0,0.01850321]
[1733437323306,0.00317448,98095.0,98094.0,0.18161121]
[1733437324437,0.00917448,98095.0,98094.0,0.18161121]
[1733437324661,0.00917448,98095.0,98094.0,0.32838726]
[1733437324896,0.00917448,98095.0,98094.0,0.82139544]
[1733437325101,0.00917448,98095.0,98094.0,0.65289223]
[1733437325313,0.00077179,98134.0,98094.0,0.65289223]
[1733437325314,0.00077179,98134.0,98133.0,0.01850321]
[1733437325543,0.03740853,98135.0,98134.0,0.18154521]
[1733437325770,0.03799653,98135.0,98134.0,0.18154521]
[1733437326210,0.000588,98135.0,98134.0,0.30422126]
[1733437326421,0.000588,98135.0,98134.0,0.40214048]
[1733437327083,0.000588,98135.0,98128.0,0.0811]
[1733437327084,0.000588,98135.0,98128.0,0.01850321]
[1733437327563,0.000588,98135.0,98116.0,0.0471]
[1733437327564,0.001588,98135.0,98134.0,0.01850321]
[1733437327772,0.000588,98135.0,98134.0,0.01850321]
[1733437328680,0.000588,98135.0,98134.0,0.02050321]
[1733437329352,2.60426405,98135.0,98134.0,0.009]
[1733437329578,0.10126405,98135.0,98134.0,0.002]
[1733437329808,0.001588,98135.0,98134.0,0.006]
[1733437330026,0.001588,98135.0,98134.0,0.02450321]
[1733437332850,1.611588,98135.0,98134.0,0.006]
[1733437333068,0.001588,98135.0,98134.0,0.006]
[1733437333294,0.00235979,98135.0,98134.0,0.006]
[1733437334170,0.001588,98135.0,98134.0,0.006]
[1733437335229,0.10126405,98135.0,98134.0,0.006]
[1733437335438,4.62403584,98135.0,98134.0,0.006]
[1733437335642,0.10126405,98135.0,98134.0,0.006]
[1733437335847,3.38803584,98135.0,98134.0,0.006]
[1733437336055,3.39326405,98135.0,98134.0,0.002]
[1733437336259,3.32026405,98135.0,98134.0,0.002]
[1733437336471,2.02326405,98135.0,98134.0,0.002]
[1733437336909,1.77206405,98135.0,98134.0,0.001]
[1733437337135,1.66406405,98135.0,98134.0,0.001]
[1733437337347,0.203828,98122.0,98114.0,0.01850321]
[1733437337610,0.00077179,98121.0,98114.0,0.01850321]
[1733437337852,1.139,98120.0,98112.0,0.01850321]
[1733437338060,1.139,98120.0,98102.0,0.01850321]
[1733437338061,0.00077179,98119.0,98102.0,0.01850321]
[1733437338269,0.00077179,98119.0,98091.0,0.00041926]
[1733437338270,0.09967605,98118.0,98103.0,0.01850321]
[1733437338483,0.203859,98107.0,98102.0,0.01850321]
[1733437338698,0.00077179,98106.0,98093.0,0.01850321]
[1733437338917,0.09967605,98105.0,98090.0,0.0008679]
[1733437339141,0.203888,98093.0,98090.0,0.0008679]
[1733437339378,0.203892,98091.0,98090.0,0.0008679]
[1733437339596,4.95706484,98091.0,98090.0,0.0008679]
[1733437339813,4.98818328,98091.0,98090.0,0.0008679]
[1733437340051,5.0087905,98091.0,98090.0,0.0008679]
[1733437340277,5.03772877,98091.0,98090.0,0.0008679]
[1733437340518,5.03772877,98091.0,98090.0,0.00204238]
[1733437340747,0.13149679,98089.0,98070.0,0.0156476]
[1733437340968,4.96478488,98089.0,98088.0,44.6968082]
[1733437341186,4.96478488,98089.0,98088.0,44.6047082]
[1733437341187,4.99108981,98089.0,98088.0,44.6047082]
[1733437342053,4.99708981,98089.0,98088.0,44.6047082]
[1733437343156,1.49168981,98089.0,98088.0,44.05722242]
[1733437343398,1.64104328,98089.0,98088.0,44.03096413]
[1733437343608,6.16304328,98089.0,98088.0,44.03096413]
[1733437344072,6.4517169,98089.0,98088.0,44.03096413]
[1733437344312,6.48004328,98089.0,98088.0,44.01056762]
[1733437344539,6.48004328,98089.0,98088.0,44.00540876]
[1733437344540,2.49264328,98089.0,98088.0,44.00540876]
[1733437344756,2.49264328,98089.0,98088.0,44.0002499]
[1733437344978,2.48364328,98089.0,98088.0,43.99509104]
[1733437345445,2.49264328,98089.0,98088.0,43.99509104]
[1733437345891,3.48743529,98089.0,98088.0,43.98477332]
[1733437346532,3.49643529,98089.0,98088.0,43.98477332]
[1733437346752,3.48743529,98089.0,98088.0,43.98377332]
[1733437346958,3.48743529,98089.0,98088.0,43.97861446]
[1733437347166,3.50160758,98089.0,98088.0,43.97861446]
[1733437347383,3.50543529,98089.0,98088.0,43.97761446]
[1733437347888,3.51253529,98089.0,98088.0,43.97761446]
[1733437348130,3.51253529,98089.0,98088.0,43.8898956]
[1733437348342,3.51253529,98089.0,98088.0,43.37483546]
[1733437348555,8.03453529,98089.0,98088.0,43.3686766]
[1733437348764,8.03453529,98089.0,98088.0,43.36251774]
[1733437348981,8.02553529,98089.0,98088.0,43.36251774]
[1733437349196,8.02553529,98089.0,98088.0,43.35635888]
[1733437349414,3.49453529,98089.0,98088.0,43.35635888]
[1733437349646,3.49453529,98089.0,98088.0,43.13613831]
[1733437349882,4.00353529,98089.0,98088.0,43.13613831]
[1733437350377,4.03412406,98089.0,98088.0,43.11574831]
[1733437350591,4.03412406,98089.0,98088.0,43.09535831]
[1733437351503,4.03412406,98089.0,98088.0,42.8659207]
[1733437351737,3.53412406,98089.0,98088.0,42.8659207]
[1733437352823,3.55874515,98089.0,98088.0,42.8251407]
[1733437353515,3.55874515,98089.0,98088.0,42.8047507]
[1733437353739,3.55874515,98089.0,98088.0,42.7843607]
[1733437353943,3.55874515,98089.0,98088.0,42.7231907]
[1733437354166,7.24394494,98089.0,98088.0,42.7231907]
[1733437354391,7.09394494,98089.0,98088.0,42.7028007]
[1733437355939,7.23494494,98089.0,98088.0,42.7028007]
[1733437356138,7.24394494,98089.0,98088.0,42.7028007]
[1733437356549,6.23115293,98089.0,98088.0,42.7028007]
[1733437356759,6.24015293,98089.0,98088.0,42.7028007]
[1733437356996,6.56315293,98089.0,98088.0,42.6416307]
[1733437357272,6.55415293,98089.0,98088.0,42.6008507]
[1733437357707,6.56315293,98089.0,98088.0,42.5192907]
[1733437358137,6.56315293,98089.0,98088.0,42.4989007]
[1733437358138,6.55415293,98089.0,98088.0,42.4989007]
[1733437358370,6.56315293,98089.0,98088.0,42.4377307]
[1733437359036,6.54235314,98089.0,98088.0,42.3969507]
[1733437359463,7.06795314,98089.0,98088.0,42.3357807]
[1733437359687,7.06795314,98089.0,98088.0,42.3153907]
[1733437359898,7.07695314,98089.0,98088.0,42.2950007]
[1733437360308,7.07695314,98089.0,98088.0,42.2746107]
[1733437360737,2.55495314,98089.0,98088.0,42.2542207]
[1733437360964,2.55495314,98089.0,98088.0,42.2338307]
[1733437361624,2.55495314,98089.0,98088.0,42.1930507]
[1733437361849,1.55227502,98089.0,98088.0,42.1522707]
[1733437362085,6.07427502,98089.0,98088.0,42.1318807]
[1733437362322,6.07427502,98089.0,98088.0,42.0707107]
[1733437362323,1.55227502,98089.0,98088.0,42.0707107]
[1733437362766,2.55606703,98089.0,98088.0,41.51994988]
[1733437363008,7.07806703,98089.0,98088.0,41.51994988]
[1733437363699,7.07806703,98089.0,98088.0,41.47916988]
[1733437365004,7.07806703,98089.0,98088.0,41.43567511]
[1733437365418,7.07806703,98089.0,98088.0,41.41528511]
[1733437365632,7.07806703,98089.0,98088.0,41.37450511]
[1733437366258,7.18476703,98089.0,98088.0,41.33372511]
[1733437366903,7.18476703,98089.0,98088.0,41.29294511]
[1733437366904,8.18744515,98089.0,98088.0,41.29294511]
[1733437367120,3.68634513,98089.0,98088.0,41.23177511]
[1733437367350,3.68634513,98089.0,98088.0,41.21138511]
[1733437367563,3.68634513,98089.0,98088.0,41.19099511]
[1733437367773,3.68634513,98089.0,98088.0,41.17060511]
[1733437367985,3.69151187,98089.0,98088.0,41.12982511]
[1733437368426,8.20834513,98089.0,98088.0,41.04826511]
[1733437368670,8.23912686,98089.0,98088.0,41.02787511]
[1733437368898,8.18744515,98089.0,98088.0,41.02787511]
[1733437369329,8.21826198,98089.0,98088.0,40.98709511]
[1733437369543,8.21826198,98089.0,98088.0,40.92592511]
[1733437369544,3.69626198,98089.0,98088.0,40.92592511]
[1733437370028,3.66544515,98089.0,98088.0,40.92592511]
[1733437370442,3.6963024,98089.0,98088.0,40.90553511]
[1733437370644,2.7320024,98089.0,98088.0,40.88514511]
[1733437370850,2.8387024,98089.0,98088.0,40.82397511]
[1733437371064,6.04237681,98089.0,98088.0,40.82397511]
[1733437372151,6.03991056,98089.0,98088.0,40.82397511]
[1733437372379,6.22086988,98089.0,98088.0,40.82397511]
[1733437372594,6.0267201,98089.0,98088.0,40.82397511]
[1733437372805,5.99576078,98089.0,98088.0,40.82397511]
[1733437373015,6.03346286,98089.0,98088.0,40.82397511]
[1733437373220,5.98707186,98089.0,98088.0,40.82397511]
[1733437373455,5.95836978,98089.0,98088.0,40.82397511]
[1733437373674,5.64346806,98089.0,98088.0,40.95057511]
[1733437373908,5.63446806,98089.0,98088.0,40.95057511]
[1733437374120,5.65246806,98089.0,98088.0,40.95057511]
[1733437374334,4.87546806,98089.0,98088.0,40.95057511]
[1733437374544,4.85946806,98089.0,98088.0,40.95057511]
[1733437374753,4.85046806,98089.0,98088.0,40.95057511]
[1733437375222,3.93346806,98089.0,98088.0,40.95057511]
[1733437375699,3.92646806,98089.0,98088.0,40.95057511]
[1733437375936,3.93246806,98089.0,98088.0,40.95057511]
[1733437376152,1.75804411,98089.0,98088.0,40.95057511]
[1733437376392,1.20404411,98089.0,98088.0,40.95057511]
[1733437376599,0.98136806,98089.0,98088.0,40.95057511]
[1733437376797,0.86226806,98089.0,98088.0,40.95057511]
[1733437377210,0.85626806,98089.0,98088.0,40.95057511]
[1733437377417,0.86326806,98089.0,98088.0,40.95057511]
[1733437377629,0.72616806,98089.0,98088.0,40.96907832]
[1733437378051,0.71916806,98089.0,98088.0,41.27089554]
[1733437378271,0.52496806,98089.0,98088.0,40.96907832]
[1733437378698,0.52196806,98089.0,98088.0,40.96907832]
[1733437378927,0.33294605,98089.0,98088.0,41.22625237]
[1733437379151,0.25274605,98089.0,98088.0,41.14605237]
[1733437379374,0.24374605,98089.0,98088.0,41.14605237]
[1733437379594,0.24374605,98089.0,98088.0,41.24397159]
[1733437379820,0.24974605,98089.0,98088.0,41.24397159]
[1733437380242,0.21169879,98089.0,98088.0,41.39397159]
[1733437380461,0.11435383,98089.0,98088.0,41.39397159]
[1733437380678,0.001736,98090.0,98089.0,0.31850321]
[1733437380889,0.00077179,98143.0,98132.0,0.01850321]
[1733437381122,0.203782,98144.0,98132.0,0.01850321]
[1733437381123,0.00077179,98139.0,98132.0,0.01850321]
[1733437381325,0.00077179,98139.0,98138.0,0.01850321]
[1733437381563,0.002323,98140.0,98109.0,0.353853]
[1733437381564,0.002323,98140.0,98139.0,0.01850321]
[1733437381798,0.002323,98140.0,98139.0,0.19073413]
[1733437382241,0.00077179,98167.0,98139.0,0.19073413]
[1733437382242,0.00077179,98167.0,98159.0,0.01850321]
[1733437382468,0.00077179,98167.0,98163.0,0.01850321]
[1733437382716,0.00077179,98177.0,98168.0,0.01850321]
[1733437383171,0.00077179,98177.0,98159.0,0.4075]
[1733437383172,1.1884753,98186.0,98169.0,0.01850321]
[1733437383398,0.00077179,98185.0,98169.0,0.22223321]
[1733437383652,0.00179317,98170.0,98169.0,0.22223321]
[1733437383880,0.00679317,98170.0,98169.0,0.22223321]
[1733437384120,0.00679317,98170.0,98169.0,0.37960648]
[1733437384325,0.00077179,98198.0,98169.0,0.37960648]
[1733437384545,0.00077179,98198.0,98178.0,0.203709]
[1733437384748,0.00077179,98198.0,98189.0,0.01850321]
[1733437384959,0.0017336,98220.0,98189.0,0.22219121]
[1733437384960,0.00179291,98190.0,98189.0,0.22219121]
[1733437385188,0.00179291,98190.0,98189.0,0.26488218]
[1733437385425,0.0017336,98220.0,98199.0,0.01850321]
[1733437385426,0.00077179,98215.0,98199.0,0.01850321]
[1733437386108,0.3,98267.0,98189.0,0.04274968]
[1733437386109,0.203525,98268.0,98239.0,0.01850321]
[1733437386341,0.203536,98263.0,98239.0,0.01850321]
[1733437386563,0.5,98282.0,98239.0,0.01850321]
[1733437386564,0.203513,98274.0,98239.0,0.11817926]
[1733437386770,0.13149679,98299.0,98239.0,0.11817926]
[1733437386771,0.13149679,98299.0,98242.0,0.15]
[1733437387021,0.13149679,98299.0,98239.0,0.35183542]
[1733437387022,0.6003561,98289.0,98269.0,0.01850321]
[1733437387259,0.203489,98286.0,98269.0,0.01850321]
[1733437387492,0.00232092,98270.0,98269.0,0.01850321]
[1733437388802,0.00232092,98270.0,98269.0,0.01850321]
[1733437389020,0.00332092,98270.0,98269.0,0.01850321]
[1733437389917,0.04311085,98304.0,98277.0,0.01850321]
[1733437390145,0.203493,98284.0,98277.0,0.01850321]
[1733437390380,2.117,98283.0,98275.0,0.01850321]
[1733437390600,4.522,98299.0,98269.0,0.01850321]
[1733437390819,1.28815135,98303.0,98275.0,0.01850321]
[1733437390820,0.203502,98279.0,98275.0,0.01850321]
[1733437391034,0.203508,98276.0,98266.0,0.01850321]
[1733437391262,0.203504,98278.0,98277.0,0.001]
[1733437392567,0.203506,98277.0,98273.0,0.01850321]
[1733437393005,0.003,98278.0,98273.0,0.01850321]
[1733437393651,0.003,98278.0,98275.0,0.01850321]
[1733437393652,0.203506,98277.0,98275.0,0.01850321]
[1733437393859,0.207506,98277.0,98276.0,0.01850321]
[1733437394113,0.004,98277.0,98276.0,0.01850321]
[1733437394568,0.007,98277.0,98276.0,0.01850321]
[1733437394785,0.20356,98251.0,98249.0,0.01850321]
[1733437395001,0.20356,98251.0,98178.0,0.00041926]
[1733437395002,0.0455,98276.0,98250.0,0.01850321]
[1733437395240,0.0455,98276.0,98178.0,0.00041926]
[1733437395241,0.203655,98205.0,98198.0,0.01850321]
[1733437395517,0.203655,98205.0,98178.0,0.00041926]
[1733437395518,0.445,98204.0,98179.0,0.09967605]
[1733437395758,0.09967605,98203.0,98175.0,0.01353721]
[1733437395990,0.09967605,98203.0,98178.0,0.01353721]
[1733437396198,0.09967605,98203.0,98159.0,0.15]
[1733437396199,3.621661,98202.0,98181.0,0.01353721]
[1733437396421,0.203699,98185.0,98176.0,0.01353721]
[1733437396644,0.203699,98185.0,98158.0,0.00041926]
[1733437396645,0.09967605,98201.0,98179.0,0.01353721]
[1733437396856,0.203705,98181.0,98179.0,0.01353721]
[1733437397732,0.203705,98181.0,98179.0,0.01412513]
[1733437398612,0.208705,98181.0,98179.0,0.01412513]
[1733437398833,0.208705,98181.0,98180.0,0.26321326]
[1733437398834,0.005,98181.0,98180.0,0.26321326]
[1733437399056,0.009,98185.0,98184.0,0.16353721]
[1733437399312,0.009,98185.0,98184.0,0.26321326]
[1733437399535,0.407273,98214.0,98205.0,0.01353721]
[1733437399753,0.203636,98214.0,98205.0,0.01353721]
[1733437399979,0.407273,98214.0,98205.0,0.01353721]
[1733437400214,0.203636,98214.0,98205.0,0.01353721]
[1733437400428,0.407273,98214.0,98205.0,0.01353721]
[1733437400656,0.0455,98221.0,98205.0,0.01353721]
[1733437400858,0.007,98214.0,98205.0,0.01453721]
[1733437401076,0.007,98214.0,98210.0,0.01353721]
[1733437401516,0.014,98214.0,98210.0,0.01353721]
[1733437401933,0.014,98214.0,98205.0,0.002]
[1733437402143,0.203653,98206.0,98205.0,0.002]
[1733437402358,0.203641,98212.0,98205.0,0.00258792]
[1733437402563,0.203653,98206.0,98205.0,0.00258792]
[1733437402775,0.203653,98206.0,98205.0,0.00058792]
[1733437402980,0.203653,98206.0,98205.0,0.00158792]
[1733437403399,0.203653,98206.0,98205.0,0.00058792]
[1733437403400,0.30332905,98206.0,98205.0,0.00058792]
[1733437403866,0.67884607,98206.0,98205.0,0.00058792]
[1733437404311,0.47819307,98206.0,98205.0,0.00058792]
[1733437404554,4.99719307,98206.0,98205.0,0.00058792]
[1733437405208,0.38502905,98206.0,98205.0,0.00058792]
[1733437405422,4.90702905,98206.0,98205.0,0.00058792]
[1733437405646,5.05884607,98206.0,98205.0,0.00158792]
[1733437405858,4.72932356,98206.0,98205.0,0.00158792]
[1733437406068,4.87114058,98206.0,98205.0,0.00158792]
[1733437406271,4.72732356,98206.0,98205.0,0.00058792]
[1733437406477,4.73432356,98206.0,98205.0,0.00158792]
[1733437406719,4.89827718,98206.0,98205.0,0.00158792]
[1733437406959,4.75446016,98206.0,98205.0,0.00158792]
[1733437407171,4.74032356,98206.0,98205.0,0.00258792]
[1733437407391,4.73432356,98206.0,98205.0,0.00158792]
[1733437407593,4.72732356,98206.0,98205.0,0.00058792]
[1733437407825,4.73332356,98206.0,98205.0,0.00158792]
[1733437408806,4.73932356,98206.0,98205.0,0.00158792]
[1733437409011,4.72132356,98206.0,98205.0,0.00058792]
[1733437409477,4.53632451,98206.0,98205.0,0.00158792]
[1733437409795,4.53997751,98206.0,98205.0,0.00158792]
[1733437410017,4.548977,98206.0,98205.0,0.00258792]
[1733437410271,4.539977,98206.0,98205.0,0.00058792]
[1733437410530,4.339977,98206.0,98205.0,0.00158792]
[1733437410743,4.345324,98206.0,98205.0,0.00158792]
[1733437411130,4.351324,98206.0,98205.0,0.00158792]
[1733437411606,4.345324,98206.0,98205.0,0.00158792]
[1733437411837,4.348977,98206.0,98205.0,0.00158792]
[1733437412007,0.217653,98206.0,98205.0,0.00158792]
[1733437412546,0.217653,98206.0,98192.0,0.00618298]
[1733437412808,0.0022291,98181.0,98180.0,0.203706]
[1733437412975,0.0022291,98181.0,98180.0,0.30338205]
[1733437413179,0.0022291,98181.0,98180.0,0.14868805]
[1733437413871,0.0022291,98181.0,98180.0,0.29970642]
[1733437414084,0.0022291,98181.0,98180.0,0.30168805]
[1733437414968,0.0032291,98181.0,98180.0,0.31068805]
[1733437415381,0.02,98214.0,98182.0,0.15]
[1733437415588,0.02,98214.0,98198.0,0.15]
[1733437415808,0.0017306,98210.0,98200.0,0.203665]
[1733437416009,0.0017306,98210.0,98201.0,0.09967605]
[1733437416211,0.0017306,98210.0,98202.0,0.203661]
[1733437416436,0.0017306,98210.0,98204.0,0.203657]
[1733437416653,0.0017306,98210.0,98205.0,0.16537546]
[1733437416857,0.0017306,98210.0,98205.0,0.09967605]
[1733437417080,0.0017306,98210.0,98205.0,0.30333005]
[1733437417270,0.0017306,98210.0,98205.0,0.09967605]
[1733437417495,0.0017306,98210.0,98205.0,0.09867732]
[1733437417683,0.0017306,98210.0,98205.0,0.30233232]
[1733437417894,0.0017306,98210.0,98206.0,0.05069953]
[1733437418164,0.0017306,98210.0,98207.0,0.09967605]
[1733437418406,0.0017306,98210.0,98209.0,0.09967605]
[1733437418835,0.0017306,98210.0,98209.0,0.39967605]
[1733437419462,0.02,98214.0,98212.0,0.15]
[1733437419684,0.02,98214.0,98213.0,0.68294567]
[1733437419885,0.0468,98256.0,98232.0,0.203597]
[1733437419886,0.203551,98255.0,98232.0,0.203597]
[1733437420103,0.203551,98255.0,98234.0,0.203595]
[1733437420302,0.203551,98255.0,98235.0,0.09967605]
[1733437420518,0.00058756,98256.0,98235.0,0.09967605]
[1733437420733,0.00058756,98256.0,98245.0,0.203571]
[1733437420959,0.00058756,98256.0,98247.0,0.203568]
[1733437421166,0.00058756,98256.0,98249.0,0.203563]
[1733437421394,0.00058756,98256.0,98236.0,0.03032771]
[1733437421395,0.00058756,98256.0,98251.0,0.20356]
[1733437421613,0.002,98255.0,98252.0,0.09967605]
[1733437421781,0.002,98255.0,98253.0,0.05068041]
[1733437421991,0.00058756,98256.0,98254.0,0.09967605]
[1733437422223,0.00058756,98256.0,98255.0,0.203551]
[1733437422423,0.00258756,98256.0,98255.0,0.30322705]
[1733437423630,0.00258756,98256.0,98255.0,0.45922705]
[1733437423890,0.00258756,98256.0,98255.0,0.5245738]
[1733437424289,0.00058756,98256.0,98255.0,0.5245738]
[1733437424523,0.01569195,98275.0,98267.0,0.203525]
[1733437424752,0.01569195,98275.0,98268.0,0.30320105]
[1733437425113,0.01569195,98275.0,98269.0,0.203522]
[1733437425331,0.01569195,98275.0,98271.0,0.203518]
[1733437425521,0.01569195,98275.0,98272.0,0.09967605]
[1733437426056,0.01569195,98275.0,98273.0,0.203514]
[1733437426272,0.01569195,98275.0,98274.0,0.09967605]
[1733437427982,0.00190962,98280.0,98275.0,0.20351]
[1733437428181,0.00190962,98280.0,98277.0,0.203506]
[1733437428407,0.00190962,98280.0,98279.0,0.203502]
[1733437428622,0.00190962,98280.0,98279.0,0.30317805]
[1733437429602,0.02199907,98280.0,98279.0,0.30317805]
[1733437429841,0.02199907,98280.0,98279.0,0.45317805]
[1733437430041,0.02199907,98280.0,98279.0,0.45817805]
[1733437430263,0.02199907,98280.0,98279.0,0.60317805]
[1733437430932,0.02199907,98280.0,98279.0,0.75517805]
[1733437431197,0.02199907,98280.0,98279.0,0.70261565]
[1733437431636,0.02199907,98280.0,98279.0,0.60317805]
[1733437431836,0.02199907,98280.0,98279.0,0.60717805]
[1733437432259,0.02199907,98280.0,98279.0,0.61517805]
[1733437432479,0.02199907,98280.0,98279.0,0.76517805]
[1733437432685,0.00190962,98280.0,98279.0,0.76517805]
[1733437432889,0.0017324,98310.0,98303.0,0.203451]
[1733437433092,0.00190842,98310.0,98304.0,0.09967605]
[1733437433537,0.00190842,98310.0,98307.0,0.203443]
[1733437433795,0.00190842,98310.0,98309.0,0.20344]
[1733437434014,0.00190842,98310.0,98309.0,0.35377196]
[1733437434666,0.00490842,98310.0,98298.0,0.203462]
[1733437434878,0.00490842,98310.0,98299.0,0.09967605]
[1733437435396,0.00190842,98310.0,98299.0,0.09967605]
[1733437435601,0.00190842,98310.0,98300.0,0.203458]
[1733437435812,0.00190842,98310.0,98301.0,0.09967605]
[1733437436228,0.00190842,98310.0,98309.0,0.001]
[1733437436857,0.203411,98323.0,98310.0,0.01378353]
[1733437437291,0.203403,98327.0,98311.0,0.09967605]
[1733437437923,0.0778,98346.0,98317.0,0.203423]
[1733437438128,0.0778,98346.0,98319.0,0.203419]
[1733437438373,0.0778,98346.0,98319.0,0.30309505]
[1733437438806,0.0037324,98320.0,98319.0,0.30309505]
[1733437439158,0.0017324,98320.0,98319.0,0.30309505]
[1733437439364,0.0017324,98320.0,98319.0,0.30409505]
[1733437439540,0.0017324,98320.0,98319.0,0.37822114]
[1733437440177,0.0017324,98320.0,98319.0,0.30409505]
[1733437441427,0.0013324,98320.0,98319.0,0.30409505]
[1733437441649,0.0013324,98320.0,98319.0,0.10467605]
[1733437441989,0.0013324,98320.0,98319.0,0.10367605]
[1733437442518,0.0013324,98320.0,98319.0,0.09967605]
[1733437442729,0.0013324,98320.0,98319.0,0.19367166]
[1733437443168,0.0013324,98320.0,98319.0,0.10767605]
[1733437443384,0.0013324,98320.0,98301.0,0.203456]
[1733437443595,0.0013324,98320.0,98319.0,0.008]
[1733437443823,0.0013324,98320.0,98319.0,0.10767605]
[1733437444047,0.0013324,98320.0,98319.0,0.10967605]
[1733437444529,0.0013324,98320.0,98319.0,0.10767605]
[1733437445457,0.0013324,98320.0,98319.0,0.10967605]
[1733437445691,0.0013324,98320.0,98319.0,0.11067605]
[1733437446323,0.0013324,98320.0,98319.0,0.10267605]
[1733437446565,0.0013324,98320.0,98319.0,0.10067605]
[1733437446769,0.0013324,98320.0,98319.0,0.10467605]
[1733437448145,0.0013324,98320.0,98319.0,0.10367605]
[1733437448357,0.0013324,98320.0,98319.0,0.09967605]
[1733437448804,0.0013324,98320.0,98319.0,0.10167605]
[1733437449115,0.0013324,98320.0,98319.0,0.09967605]
[1733437449331,0.0013324,98320.0,98319.0,0.10167605]
[1733437450470,0.0013324,98320.0,98319.0,0.10267605]
[1733437450895,0.0013324,98320.0,98319.0,0.10167605]
[1733437451122,0.0013324,98320.0,98319.0,0.10267605]
[1733437451329,0.203362,98347.0,98320.0,0.01435955]
[1733437451551,0.203362,98347.0,98329.0,0.203398]
[1733437451751,0.203345,98355.0,98333.0,0.20339]
[1733437451752,0.02005611,98345.0,98333.0,0.20339]
[1733437451929,0.203354,98351.0,98334.0,0.09967605]
[1733437452231,0.203346,98355.0,98335.0,0.203386]
[1733437452437,0.203337,98359.0,98336.0,0.09967605]
[1733437452635,0.203337,98359.0,98337.0,0.203381]
[1733437452905,0.0027342,98340.0,98339.0,0.203378]
[1733437453108,0.0027342,98340.0,98339.0,0.30305405]
[1733437453422,0.0027342,98340.0,98339.0,0.35369756]
[1733437453616,0.0027342,98340.0,98339.0,0.30305405]
[1733437454037,0.0057342,98340.0,98339.0,0.30305405]
[1733437454258,0.00591019,98340.0,98339.0,0.30305405]
[1733437454508,0.00291019,98340.0,98339.0,0.09967605]
[1733437454701,0.00191019,98340.0,98339.0,0.09967605]
[1733437454899,0.00191019,98340.0,98339.0,0.10167605]
[1733437455786,0.00191019,98340.0,98339.0,0.10467605]
[1733437456442,0.00191019,98340.0,98339.0,0.16983697]
[1733437456555,0.00191019,98340.0,98339.0,0.32083697]
[1733437456769,0.00191019,98340.0,98339.0,0.31982016]
[1733437457125,0.0456,98361.0,98353.0,0.203348]
[1733437457126,0.0434598,98361.0,98353.0,0.203348]
[1733437457354,0.0213847,98360.0,98354.0,0.09967605]
[1733437457538,0.00058651,98360.0,98355.0,0.05063771]
[1733437457780,0.00058651,98360.0,98356.0,0.09967605]
[1733437458421,0.00058651,98360.0,98357.0,0.20334]
[1733437458626,0.00058651,98360.0,98359.0,0.203336]
[1733437458842,0.00058651,98360.0,98359.0,0.30301205]
[1733437459931,0.00158651,98360.0,98359.0,0.30301205]
[1733437460143,0.00158651,98360.0,98359.0,0.33670704]
[1733437460419,0.00058651,98360.0,98359.0,0.34170704]
[1733437460833,0.00058651,98360.0,98359.0,0.34370704]
[1733437461267,0.00058651,98360.0,98359.0,0.34170704]
[1733437461488,0.00058651,98360.0,98359.0,0.49170704]
[1733437461701,0.00058651,98360.0,98359.0,0.49570704]
[1733437461702,0.00158651,98360.0,98359.0,0.49570704]
[1733437462122,0.00158651,98360.0,98359.0,0.50470704]
[1733437462332,0.00158651,98360.0,98359.0,0.49570704]
[1733437462551,0.00158651,98360.0,98359.0,0.50470704]
[1733437462764,0.00158651,98360.0,98359.0,0.49570704]
[1733437462765,0.00058651,98360.0,98359.0,0.49570704]
[1733437462991,0.00058651,98360.0,98359.0,0.48670704]
[1733437463173,0.00158651,98360.0,98359.0,0.50470704]
[1733437463571,0.00058651,98360.0,98359.0,0.49570704]